fUSD/lending_fUSD_20240606
["ID","MTS","AMOUNT","RATE_DAILY","PERIOD"]
[328629403,1717632003117,500.0,0.00033592,30]
[328629404,1717632003394,500.0,0.00033592,30]
[328629405,1717632004585,500.0,0.00033592,30]
[328629406,1717632004922,500.0,0.00033592,30]
[328629407,1717632018866,498.0,0.00033592,30]
[328629408,1717632020962,543.82462861,0.00033592,30]
[328629409,1717632023690,500.0,0.00033592,30]
[328629410,1717632038106,438.14307383,0.00033592,30]
[328629411,1717632042375,500.0,0.00033592,30]
[328629412,1717632042661,500.0,0.00033592,30]
[328629413,1717632043250,506.37621283,0.00033592,30]
[328629415,1717632045833,326.74185483,0.00033592,30]
[328629416,1717632047930,505.2920174,0.00033592,30]
[328629417,1717632051503,538.01736496,0.00033592,30]
[328629418,1717632053597,518.00254908,0.00033592,30]
[328629419,1717632055889,507.13670372,0.00033592,30]
[328629420,1717632058363,524.08890994,0.00033592,30]
[328629421,1717632060588,513.58590342,0.00033592,30]
[328629422,1717632062783,527.17476893,0.00033592,30]
[328629423,1717632068121,509.98725654,0.00033592,30]
[328629424,1717632074065,532.96850656,0.00033592,30]
[328629426,1717632080135,500.0,0.00033592,30]
[328629427,1717632080424,500.0,0.00033592,30]
[328629428,1717632083369,500.0,0.00033597,30]
[328629429,1717632083775,457.5331105,0.00033597,30]
[328629430,1717632084464,500.0,0.00033597,30]
[328629431,1717632084841,500.0,0.00033597,30]
[328629432,1717632086349,507.18405625,0.00033597,30]
[328629433,1717632088487,519.81223227,0.00033597,30]
[328629435,1717632089168,516.01160868,0.00033597,30]
[328629436,1717632090523,524.25687464,0.00033597,30]
[328629437,1717632100381,522.68882156,0.00033597,30]
[328629438,1717632116178,-1066.86599008,0.00013207,2]
[328629439,1717632116202,-658.4965362,0.00013207,2]
[328629440,1717632116224,-2006.2381672,0.00013208,2]
[328629441,1717632116245,-625.28915843,0.00013209,2]
[328629442,1717632116268,-155.0,0.00013209,2]
[328629443,1717632116288,-208.03390212,0.00013209,2]
[328629444,1717632116309,-791.8094853,0.0001321,2]
[328629445,1717632116331,-4440.92771501,0.0001321,2]
[328629446,1717632116352,-11362.4419,0.00013211,2]
[328629447,1717632116373,-155.0,0.0001328,2]
[328629448,1717632116394,-234.92335311,0.0001328,2]
[328629449,1717632116415,-155.0,0.0001328,2]
[328629450,1717632116436,-327.75202513,0.0001328,2]
[328629451,1717632116459,-8415.28893931,0.0001328,2]
[328629452,1717632116480,-201.51061122,0.00013281,2]
[328629453,1717632116502,-1252.30935523,0.00013281,2]
[328629454,1717632116523,-1182.56989427,0.00013282,2]
[328629455,1717632116544,-10968.56338147,0.00013282,2]
[328629456,1717632116564,-155.0,0.00013283,2]
[328629457,1717632116586,-155.0,0.00013283,2]
[328629458,1717632116607,-3016.6443805,0.00013283,2]
[328629459,1717632116628,-241.39477687,0.00013284,2]
[328629460,1717632116649,-4288.3510068,0.00013284,2]
[328629461,1717632116670,-150.0,0.00013292,2]
[328629462,1717632116691,-3057.83602636,0.00013335,2]
[328629463,1717632116712,-150.99,0.00013335,2]
[328629464,1717632116734,-3899.0556,0.00013339,2]
[328629465,1717632116760,-150.99,0.00013339,2]
[328629466,1717632116784,-183.3,0.00013339,2]
[328629467,1717632116808,-499.99,0.00013339,2]
[328629468,1717632116833,-2029.4,0.000137,2]
[328629469,1717632116858,-23900.0,0.00013817,2]
[328629470,1717632116880,-752.30654583,0.000139,2]
[328629471,1717632116902,-2169.69,0.000139,2]
[328629472,1717632116926,-395.68026034,0.000139,2]
[328629473,1717632116948,-1626.46110083,0.000139,2]
[328629474,1717632116970,-541.08160965,0.00013998,2]
[328629475,1717632116994,-155.0,0.00013998,2]
[328629476,1717632117016,-345.31964735,0.00013998,2]
[328629477,1717632117038,-429.30674478,0.00013998,2]
[328629478,1717632117060,-155.11093691,0.00013998,2]
[328629479,1717632117083,-307.06708735,0.00013998,2]
[328629480,1717632117106,-155.0,0.00013998,2]
[328629481,1717632117129,-155.0,0.00013998,2]
[328629482,1717632117152,-155.43220333,0.00013998,2]
[328629483,1717632117178,-155.3839327,0.00013998,2]
[328629484,1717632117201,-156.07751853,0.00013998,2]
[328629485,1717632117224,-157.48411225,0.00013998,2]
[328629486,1717632117248,-237.28714739,0.00013998,2]
[328629487,1717632117270,-369.61030645,0.00013998,2]
[328629488,1717632117291,-207.45551021,0.00013998,2]
[328629489,1717632117313,-182.04666106,0.00013998,2]
[328629490,1717632117335,-292.2845789,0.00013998,2]
[328629491,1717632117356,-524.93081759,0.00013998,2]
[328629492,1717632117376,-5569.04084293,0.00013998,2]
[328629493,1717632117397,-701.43132,0.00013998,2]
[328629494,1717632117417,-789.12357546,0.00013998,2]
[328629495,1717632117439,-424.7108407,0.00013998,2]
[328629496,1717632117459,-324.6854332,0.00013998,2]
[328629497,1717632117479,-155.0,0.00013998,2]
[328629498,1717632117501,-155.305,0.00013998,2]
[328629499,1717632117522,-645.95513848,0.00013998,2]
[328629500,1717632117543,-271.42441619,0.00013998,2]
[328629501,1717632117565,-156.60759971,0.00013998,2]
[328629502,1717632117587,-211.02279903,0.00013998,2]
[328629503,1717632117607,-333.70241326,0.00013998,2]
[328629504,1717632117629,-7529.62685189,0.00013998,2]
[328629505,1717632117649,-155.92661152,0.00013998,2]
[328629506,1717632117670,-1275.37927053,0.00013998,2]
[328629507,1717632117693,-268.8327842,0.00013998,2]
[328629508,1717632117714,-960.57363014,0.00013998,2]
[328629509,1717632117734,-1651.91112842,0.00013998,2]
[328629510,1717632117758,-155.78454438,0.00013998,2]
[328629511,1717632117778,-155.38673951,0.00013998,2]
[328629512,1717632117801,-156.80126126,0.00013998,2]
[328629513,1717632117823,-1732.51674394,0.00013998,2]
[328629514,1717632117849,-687.6604682,0.00013998,2]
[328629515,1717632117871,-155.8597219,0.00013998,2]
[328629516,1717632117893,-155.9308215,0.00013998,2]
[328629517,1717632117916,-155.96229611,0.00013998,2]
[328629518,1717632117937,-171.02865377,0.00013998,2]
[328629519,1717632117957,-1051.47566796,0.00013998,2]
[328629520,1717632117977,-1066.71897713,0.00013998,2]
[328629521,1717632117997,-490.8225388,0.00013998,2]
[328629522,1717632118020,-155.65968326,0.00013998,2]
[328629523,1717632118044,-155.69171516,0.00013998,2]
[328629524,1717632118066,-155.97400224,0.00013998,2]
[328629525,1717632118087,-2367.15501921,0.00013998,2]
[328629526,1717632118109,-196.76359582,0.00013998,2]
[328629527,1717632118129,-191.66157986,0.00013998,2]
[328629528,1717632118150,-284.47667412,0.00013998,2]
[328629529,1717632118171,-207.25116372,0.00013998,2]
[328629530,1717632118191,-329.51037709,0.00013998,2]
[328629531,1717632118212,-166.16771595,0.00013998,2]
[328629532,1717632118232,-155.40326107,0.00013998,2]
[328629533,1717632118252,-1386.50548993,0.00013998,2]
[328629534,1717632118272,-210.10333298,0.00013998,2]
[328629535,1717632118293,-156.09057585,0.00013998,2]
[328629536,1717632118314,-155.30041863,0.00013998,2]
[328629537,1717632118335,-222.68932042,0.00013998,2]
[328629538,1717632118356,-228.3981218,0.00013998,2]
[328629539,1717632118376,-157.63078057,0.00013998,2]
[328629540,1717632118397,-306.17517016,0.00013998,2]
[328629541,1717632118420,-155.4910523,0.00013998,2]
[328629542,1717632118443,-207.62914883,0.00013998,2]
[328629543,1717632118466,-3105.91132803,0.00013998,2]
[328629544,1717632118488,-249.02412338,0.00013998,2]
[328629545,1717632118508,-192.8968547,0.00013998,2]
[328629546,1717632118531,-357.77244657,0.00013998,2]
[328629547,1717632118552,-156.00145897,0.00013998,2]
[328629548,1717632118577,-268.59558881,0.00013998,2]
[328629549,1717632118599,-155.81904054,0.00013998,2]
[328629550,1717632118619,-190.52131642,0.00013998,2]
[328629551,1717632118639,-867.523695,0.00013998,2]
[328629552,1717632118660,-155.51016798,0.00013998,2]
[328629553,1717632118681,-502.24786089,0.00013999,2]
[328629554,1717632118702,-10530.78040028,0.00013999,2]
[328629555,1717632118725,-243288.47050328,0.00014,2]
[328629556,1717632118779,520.75762331,0.00033597,30]
[328629557,1717632140689,500.0,0.00033597,30]
[328629558,1717632142949,518.44177929,0.00033597,30]
[328629559,1717632150911,553.97412749,0.00033597,30]
[328629560,1717632153271,500.0,0.00033597,30]
[328629561,1717632153538,301.84897073,0.00033597,30]
[328629562,1717632263887,500.0,0.00033597,30]
[328629563,1717632264204,600.13397882,0.00033597,30]
[328629564,1717632277211,218.54302158,0.00033597,30]
[328629565,1717632283424,500.0,0.00033597,30]
[328629566,1717632283683,522.62542181,0.00033597,30]
[328629567,1717632315777,500.0,0.00033597,30]
[328629568,1717632316043,512.45477765,0.00033597,30]
[328629569,1717632325060,500.0,0.00033597,30]
[328629570,1717632325362,560.77894332,0.00033597,30]
[328629571,1717632327358,500.0,0.00033597,30]
[328629572,1717632327644,500.0,0.00033597,30]
[328629573,1717632331742,500.0,0.00033597,30]
[328629574,1717632332052,512.86045617,0.00033597,30]
[328629575,1717632332118,-410.97295669,0.00013896,2]
[328629576,1717632332138,-90.71629921,0.00013897,2]
[328629577,1717632336811,500.0,0.00033597,30]
[328629578,1717632337102,500.0,0.00033597,30]
[328629579,1717632511359,514.25547235,0.00033597,30]
[328629580,1717632513468,500.0,0.00033597,30]
[328629581,1717632513923,299.45114458,0.00033597,30]
[328629585,1717632526059,505.32967473,0.00033597,30]
[328629586,1717632545131,-214.94886096,0.000138,2]
[328629587,1717632545152,-89.77614721,0.00013897,2]
[328629588,1717632545172,-214.94886096,0.00013899,2]
[328629589,1717632545192,-844.56940814,0.000139,2]
[328629590,1717632545213,-180.49244642,0.000139,2]
[328629591,1717632545234,-328.3690207,0.000139,2]
[328629592,1717632545255,-150.0,0.00013997,2]
[328629593,1717632545279,-157.40694559,0.00013998,2]
[328629594,1717632545299,-234.45187937,0.00013998,2]
[328629595,1717632545320,-155.0,0.00013998,2]
[328629596,1717632545340,-1064.51850023,0.00013998,2]
[328629597,1717632545362,-645.53515649,0.00013998,2]
[328629598,1717632545384,-3837.55161089,0.00013998,2]
[328629599,1717632545405,-2004.73823716,0.00013998,2]
[328629600,1717632545426,-155.0,0.00013998,2]
[328629601,1717632545448,-657.97669336,0.00013998,2]
[328629602,1717632545468,-241.39477687,0.00013998,2]
[328629603,1717632545489,-756.35596724,0.00013998,2]
[328629604,1717632545510,-410.00321735,0.00013998,2]
[328629605,1717632545530,-327.75101451,0.00013999,2]
[328629606,1717632545553,-189.42781049,0.00013999,2]
[328629607,1717632545573,-232.13874384,0.00013999,2]
[328629608,1717632545594,-155.0,0.00013999,2]
[328629609,1717632545614,-201.3563572,0.00013999,2]
[328629610,1717632545635,-3011.78207583,0.00013999,2]
[328629611,1717632545660,-2779.58353619,0.00013999,2]
[328629612,1717632545681,-3382.05203748,0.00013999,2]
[328629613,1717632545701,-208.34045628,0.00013999,2]
[328629614,1717632545721,-804.68514185,0.00013999,2]
[328629615,1717632545742,-1181.7656568,0.00013999,2]
[328629616,1717632545765,-70432.58856228,0.00014,2]
[328629617,1717632547195,-1002.21107667,0.00014,2]
[328629618,1717632549147,-2852.70191161,0.00014,2]
[328629621,1717632550186,-24164.22567253,0.00014,2]
[328629622,1717632563305,-441.57289133,0.000139,2]
[328629623,1717632563332,-3407.12335711,0.00014,2]
[328629624,1717632573129,-10589.292,0.00014,2]
[328629625,1717632595663,-1000.0,0.0002976,30]
[328629626,1717632595694,-158.06,0.00029808,30]
[328629627,1717632595733,-900.0,0.0003,31]
[328629628,1717632609525,2552.12894963,0.000105,2]
[328629629,1717632625484,128.93809904,0.000105,2]
[328629630,1717632625517,1358.49416162,0.000105,2]
[328629634,1717632631848,-903.55095595,0.0001372,2]
[328629635,1717632631860,-518.40021227,0.0001372,2]
[328629636,1717632631906,-430.0056,0.0001372,2]
[328629637,1717632631917,-547.43728168,0.0001372,2]
[328629638,1717632631932,-211.35985452,0.0001372,2]
[328629639,1717632631942,-690.39684682,0.000139,2]
[328629640,1717632631952,-158.06,0.0001399,2]
[328629641,1717632631962,-158.06,0.0001399,2]
[328629642,1717632631971,-203.31139579,0.00014,2]
[328629643,1717632631983,-558.15546194,0.00014,2]
[328629644,1717632631995,-1266.60175907,0.00014,2]
[328629647,1717632633084,-6646.07380213,0.00014,2]
[328629648,1717632633101,-1501.57922295,0.00014,2]
[328629649,1717632633112,-253791.35791264,0.00014,2]
[328629650,1717632633132,-49347.91675046,0.00014,2]
[328629651,1717632633144,-1181.42468244,0.00014,2]
[328629652,1717632633163,-1275.75232492,0.00014,2]
[328629653,1717632633174,-15610.13498772,0.00014,2]
[328629654,1717632633186,-5615.33786295,0.00014,2]
[328629655,1717632633206,-623.76854012,0.00014,2]
[328629656,1717632633218,-22495.29542374,0.00014,2]
[328629657,1717632633233,-994.53502422,0.00014,2]
[328629658,1717632633244,-6393.22799159,0.00014,2]
[328629659,1717632633256,-261.15578167,0.00014,2]
[328629660,1717632633276,-3904.89684488,0.00014,2]
[328629661,1717632633288,-4121.07153573,0.00014,2]
[328629662,1717632633299,-10781.89455129,0.00014,2]
[328629663,1717632633311,-3670.67163834,0.00014,2]
[328629673,1717632641620,-0.35273372,0.00014,2]
[328629674,1717632641708,-1661.33606084,0.00014,2]
[328629676,1717632643153,-9594.03793159,0.00014,2]
[328629677,1717632643430,-5386.17615154,0.00014,2]
[328629687,1717632646349,-7992.83556127,0.00014,2]
[328629691,1717632646628,-24.81140213,0.00014,2]
[328629692,1717632688286,339.81205585,0.00033597,30]
[328629695,1717632860456,386.386,0.00033597,120]
[328629697,1717632949692,345.0,0.00033597,30]
[328629698,1717632971042,500.0,0.00033597,30]
[328629699,1717632971338,500.0,0.00033597,30]
[328629700,1717632971618,500.0,0.00033597,30]
[328629701,1717632971930,500.0,0.00033597,30]
[328629702,1717632972730,500.0,0.00033597,30]
[328629703,1717632973022,500.0,0.00033597,30]
[328629704,1717632973303,500.0,0.00033597,30]
[328629705,1717632973608,500.0,0.00033597,30]
[328629706,1717632973885,500.0,0.00033597,30]
[328629707,1717632974164,535.74408843,0.00033597,30]
[328629710,1717633039399,5563.43137002,0.00033597,30]
[328629712,1717633062784,190.0,0.00033597,30]
[328629713,1717633100665,2436.56862998,0.00033597,30]
[328629714,1717633109294,500.0,0.00033597,30]
[328629715,1717633109585,639.50328861,0.00033597,30]
[328629717,1717633167096,500.0,0.00033596,30]
[328629718,1717633167380,500.0,0.00033596,30]
[328629719,1717633167644,500.0,0.00033596,30]
[328629720,1717633167906,500.0,0.00033596,30]
[328629721,1717633168168,272.70661067,0.00033596,30]
[328629724,1717633179721,2563.43137002,0.00033596,30]
[328629725,1717633306105,1912.629486,0.00010995,2]
[328629726,1717633317981,164.01,0.00010473,2]
[328629727,1717633340664,18657.52220897,0.00010952,2]
[328629728,1717633368170,155.0,0.00010952,2]
[328629729,1717633370204,180.5825281,0.00010952,2]
[328629730,1717633386175,155.0,0.00010952,2]
[328629731,1717633388204,180.5825281,0.00010952,2]
[328629732,1717633406219,180.96091717,0.00010952,2]
[328629733,1717633521947,178.24,0.00010142,2]
[328629734,1717633559177,-345.45072342,0.00011042,2]
[328629735,1717633559205,-1302.38576457,0.00011042,2]
[328629736,1717633567165,500.0,0.00033596,30]
[328629737,1717633567751,500.0,0.00033596,30]
[328629739,1717633745143,-253.14643923,0.00011039,2]
[328629740,1717633745164,-176.371291,0.0001104,2]
[328629741,1717633745185,-3063.72776014,0.00011124,2]
[328629742,1717633745206,-942.45,0.00011125,2]
[328629743,1717633745226,-178.24,0.00011832,2]
[328629744,1717633745246,-453.04353369,0.00012458,2]
[328629745,1717633745266,-164.61,0.00012688,2]
[328629746,1717633745285,-436.08,0.00012771,2]
[328629747,1717633745304,-150.99,0.00012771,2]
[328629748,1717633745324,-3328.37,0.00012816,2]
[328629749,1717633745349,-166.73,0.0001287,2]
[328629750,1717633745368,-299.99,0.0001287,2]
[328629751,1717633745387,-150.0,0.00012942,2]
[328629752,1717633745410,-499.99,0.00012943,2]
[328629753,1717633745433,-6919.9743971,0.00012943,2]
[328629754,1717633749167,-3511.0464029,0.00012943,2]
[328629755,1717633749194,-250.0,0.00013043,2]
[328629756,1717633749217,-164.01,0.00013091,2]
[328629757,1717633749241,-18318.32,0.00013265,2]
[328629758,1717633749263,-11276.04,0.00013374,2]
[328629759,1717633749285,-942.45,0.00013389,2]
[328629760,1717633749306,-226.57446144,0.00013438,2]
[328629761,1717633749328,-250.0,0.00013478,2]
[328629762,1717633749350,-178.24,0.00013522,2]
[328629763,1717633749372,-1570.42,0.00013699,2]
[328629764,1717633749396,-431.34,0.00013699,2]
[328629765,1717633749422,-18015.3607,0.000139,2]
[328629766,1717633749446,-1640.20621885,0.000139,2]
[328629767,1717633749468,-375.5271,0.000139,2]
[328629768,1717633749493,-428.97106879,0.000139,2]
[328629769,1717633749514,-460.26456454,0.000139,2]
[328629770,1717633749536,-171.9,0.00013984,2]
[328629771,1717633749559,-158.06,0.0001399,2]
[328629772,1717633749581,-155.0,0.00013998,2]
[328629773,1717633749603,-190.39267218,0.00013998,2]
[328629774,1717633749624,-2334.89595111,0.00013998,2]
[328629775,1717633749645,-506.32296391,0.00013998,2]
[328629776,1717633749666,-217.26605951,0.00013998,2]
[328629777,1717633749687,-410.97295669,0.00013998,2]
[328629778,1717633749709,-8415.28893931,0.00013998,2]
[328629779,1717633749730,-688.181864,0.00013998,2]
[328629780,1717633749752,-208.03390212,0.00013998,2]
[328629781,1717633749774,-481.6174682,0.00013998,2]
[328629782,1717633749796,-346.17560194,0.00013998,2]
[328629783,1717633749820,-3098.55907664,0.00013999,2]
[328629784,1717633749844,-49305.94202787,0.00014,2]
[328629785,1717633752120,-165696.01,0.00014,2]
[328629786,1717633757115,-2586.18008466,0.00014,2]
[328629787,1717633767107,-3063.72776014,0.00013999,2]
[328629788,1717633767128,-253.04392149,0.00013999,2]
[328629789,1717633767150,-37409.63131837,0.00014,2]
[328629790,1717633773114,-54722.723,0.00014,2]
[328629794,1717633831995,-0.13375749,0.0001372,2]
[328629795,1717633832008,-2610.62014693,0.0001372,2]
[328629796,1717633832017,-155.32461979,0.00013899,2]
[328629797,1717633832027,-150.0,0.00013999,2]
[328629798,1717633832038,-1962.74202253,0.00014,2]
[328629799,1717633832051,-5999.8097016,0.00014,2]
[328629800,1717633832114,-5439.96,0.00014,2]
[328629801,1717633832126,-339.04706187,0.00014,2]
[328629802,1717633832264,-1694.2,0.00014,2]
[328629803,1717633832286,-939.2,0.00014,2]
[328629804,1717633832300,-2161.85386114,0.00014,2]
[328629805,1717633832313,-2614.51207228,0.00014,2]
[328629806,1717633832325,-1956.37593354,0.00014,2]
[328629807,1717633832336,-4281.61751331,0.00014,2]
[328629808,1717633832350,-4824.68606741,0.00014,2]
[328629812,1717633832396,-2418.1409,0.00014,2]
[328629828,1717633838085,-748.88056435,0.00013898,2]
[328629829,1717633838374,-253.1902177,0.00013898,2]
[328629830,1717633838384,-158.51978204,0.00014,2]
[328629831,1717633838416,-0.00718189,0.00014,2]
[328629835,1717633841701,-92410.74856508,0.00014,2]
[328629843,1717633843233,-306.84304304,0.000139,2]
[328629844,1717633843243,-4954.63439696,0.00014,2]
[328629845,1717633843413,-1773.74454508,0.00014,2]
[328629846,1717633843543,-0.00543155,0.00014,2]
[328629847,1717633843707,-1347.44252119,0.00014,2]
[328629854,1717633846090,-0.00786416,0.00013999,2]
[328629855,1717633846103,-3063.71989598,0.00013999,2]
[328629856,1717633846113,-1825.78331347,0.00014,2]
[328629857,1717633846374,-1395.78411723,0.00014,2]
[328629858,1717633941152,500.0,0.00033595,30]
[328629859,1717633941411,488.0,0.00033595,30]
[328629860,1717633984355,500.0,0.00033595,30]
[328629861,1717633996713,500.0,0.00033595,30]
[328629862,1717633997009,500.0,0.00033595,30]
[328629863,1717633997352,500.0,0.00033595,30]
[328629864,1717633998732,259.28,0.00033595,30]
[328629865,1717634021346,5000.0,0.00033595,120]
[328629866,1717634033078,5400.0,0.00033595,30]
[328629867,1717634067425,324.0,0.00033595,30]
[328629869,1717634086551,5000.0,0.00033595,120]
[328629870,1717634108651,500.0,0.00033595,30]
[328629871,1717634108948,500.0,0.00033595,30]
[328629872,1717634135796,500.0,0.00033595,30]
[328629873,1717634145960,345.0,0.00033595,30]
[328629874,1717634161226,500.0,0.00033595,30]
[328629875,1717634161489,500.0,0.00033595,30]
[328629876,1717634161779,500.0,0.00033595,30]
[328629877,1717634162080,500.0,0.00033595,30]
[328629878,1717634162381,500.0,0.00033595,30]
[328629879,1717634162665,500.0,0.00033595,30]
[328629880,1717634162946,500.0,0.00033595,30]
[328629881,1717634163219,500.0,0.00033595,30]
[328629882,1717634163487,500.0,0.00033595,30]
[328629883,1717634163746,500.0,0.00033595,30]
[328629884,1717634164027,500.0,0.00033595,30]
[328629885,1717634164345,500.0,0.00033595,30]
[328629886,1717634164636,500.0,0.00033595,30]
[328629887,1717634164922,500.0,0.00033595,30]
[328629888,1717634165190,500.0,0.00033595,30]
[328629889,1717634165496,500.0,0.00033595,30]
[328629890,1717634165772,450.44899188,0.00033595,30]
[328629891,1717634227760,653.115419,0.0001098,2]
[328629894,1717634241250,19766.6914247,0.0001098,2]
[328629895,1717634241848,289.73525073,0.0001098,2]
[328629896,1717634244577,957.42566488,0.00010431,2]
[328629897,1717634251904,527.55236333,0.00033595,30]
[328629898,1717634255850,289.44382211,0.0001098,2]
[328629899,1717634260589,957.42566488,0.00010431,2]
[328629900,1717634261381,9595.07316514,0.0001098,2]
[328629901,1717634262930,189.0,0.00033595,30]
[328629903,1717634280418,337.93984265,0.00033595,30]
[328629904,1717634297232,500.0,0.00033595,30]
[328629906,1717634344408,500.0,0.00033594,30]
[328629907,1717634344698,500.0,0.00033594,30]
[328629908,1717634373353,-3063.72776014,0.00011026,2]
[328629909,1717634373377,-1900.16906214,0.00011027,2]
[328629910,1717634373401,-625.70433105,0.00011028,2]
[328629911,1717634373423,-70.39884667,0.00011028,2]
[328629912,1717634407257,163.16,0.00010438,2]
[328629913,1717634456744,600.59296205,0.00033594,30]
[328629914,1717634477375,500.0,0.00033594,30]
[328629915,1717634531707,500.0,0.00033594,30]
[328629916,1717634590418,155.33066143,0.00033594,30]
[328629920,1717634738185,-1248.31846585,0.00011011,2]
[328629921,1717634738205,-376.88647735,0.00011012,2]
[328629922,1717634739233,978.14,0.00010313,2]
[328629924,1717634782359,174.79546801,0.0001091,2]
[328629926,1717634787296,172.46,9.732e-05,2]
[328629927,1717634833106,-185.85933177,0.00011006,2]
[328629928,1717634842103,-1032.27078716,0.00011006,2]
[328629929,1717634842127,-309.95173225,0.00011006,2]
[328629930,1717634842150,-537.34426648,0.00011007,2]
[328629931,1717634842173,-1900.16906214,0.00011008,2]
[328629932,1717634842197,-2686.84128279,0.00011012,2]
[328629933,1717634842224,-35459.35989058,0.00011013,2]
[328629934,1717634842245,-150.0,0.00011014,2]
[328629935,1717634842269,-150.0,0.00011027,2]
[328629936,1717634842290,-150.0,0.00011028,2]
[328629937,1717634842311,-150.0,0.00011028,2]
[328629938,1717634842334,-150.0,0.00011028,2]
[328629939,1717634842356,-150.0,0.00011028,2]
[328629940,1717634842380,-191.86456615,0.00011028,2]
[328629941,1717634842401,-2368.84886765,0.00011037,2]
[328629942,1717634842424,-15.87641224,0.00011041,2]
[328629943,1717634846098,-327.90106208,0.00011041,2]
[328629944,1717634923869,150.0,0.00033593,30]
[328629945,1717634952234,-1885.40241354,0.00011041,2]
[328629946,1717634952255,-1409.05,0.00011041,2]
[328629947,1717634952275,-150.0,0.00011043,2]
[328629948,1717634952295,-797.65,0.00011044,2]
[328629949,1717634952316,-6977.04,0.00011044,2]
[328629950,1717634952335,-184.58,0.00011799,2]
[328629951,1717634952354,-1403.59,0.00011799,2]
[328629952,1717634952373,-606.89,0.0001213,2]
[328629953,1717634952393,-210.0,0.00012147,2]
[328629954,1717634952413,-163.16,0.00012178,2]
[328629955,1717634952433,-888.05,0.00012255,2]
[328629956,1717634952453,-250.0,0.00012296,2]
[328629957,1717634952472,-299.99,0.00012296,2]
[328629958,1717634952492,-761.38,0.00012296,2]
[328629959,1717634952512,-1000.0,0.00012421,2]
[328629960,1717634952531,-499.99,0.00012421,2]
[328629961,1717634952549,-150.99,0.00012421,2]
[328629962,1717634952570,-978.14,0.00012577,2]
[328629963,1717634952591,-5057.24,0.00012577,2]
[328629964,1717634961108,-250.0,0.00012653,2]
[328629965,1717634961312,-2218.58,0.00013037,2]
[328629966,1717634961340,-537.34426648,0.00013361,2]
[328629967,1717634961363,-293.0,0.00013362,2]
[328629968,1717634961385,-625.70433105,0.00013437,2]
[328629970,1717634968213,-1188.72,0.00013699,2]
[328629971,1717634968235,-345.07,0.00013699,2]
[328629972,1717634968255,-342.63134256,0.000138,2]
[328629973,1717634968275,-370.0328,0.00013898,2]
[328629974,1717634968296,-2005.8594,0.00013899,2]
[328629975,1717634968319,-1503.52236727,0.000139,2]
[328629976,1717634968340,-706.97424198,0.000139,2]
[328629977,1717634968361,-229.98373697,0.000139,2]
[328629978,1717634968382,-204.56202868,0.000139,2]
[328629979,1717634968403,-163.16,0.00013917,2]
[328629980,1717634968427,-381.76420571,0.00013949,2]
[328629981,1717634968448,-1000.0,0.00013974,2]
[328629982,1717634968468,-462.61775992,0.00013998,2]
[328629983,1717634968488,-2005.80698001,0.00013998,2]
[328629984,1717634968508,-155.34173793,0.00013998,2]
[328629985,1717634968528,-2702.98299518,0.00013998,2]
[328629986,1717634968548,-1636.31612839,0.00013998,2]
[328629987,1717634968570,-269.99564848,0.00013998,2]
[328629988,1717634968590,-378.55216575,0.00013998,2]
[328629989,1717634968611,-1974.04015664,0.00013998,2]
[328629990,1717634968632,-338.15012463,0.00013998,2]
[328629991,1717634968654,-6929.7053808,0.00013998,2]
[328629992,1717634968674,-195.52623969,0.00013998,2]
[328629993,1717634968695,-645.27733347,0.00013998,2]
[328629994,1717634968716,-1175.370742,0.00013998,2]
[328629995,1717634968736,-862.13999275,0.00013998,2]